bitfinex/quotes_ETHUSD_20250625
["timestamp","ask_amount","ask_price","bid_price","bid_amount"]
[1750828431161,6.94887044,2434.7,2434.2,4.10811812]
[1750828431587,4.10746577,2434.6,2434.1,5.87022188]
[1750828432283,4.10746577,2434.6,2434.1,1.762]
[1750828432490,4.10746577,2434.6,2433.5,5.48104215]
[1750828432491,4.10812587,2434.2,2433.2,4.90346424]
[1750828432688,0.8057,2433.7,2433.2,4.10966424]
[1750828433060,4.91470317,2433.7,2433.2,4.10966424]
[1750828434288,10.0,2433.5,2432.9,0.7938]
[1750828434591,4.87927787,2433.4,2432.8,1.762]
[1750828434776,4.10965801,2433.3,2432.8,5.87245577]
[1750828435497,0.7698,2433.4,2432.8,1.762]
[1750828435660,0.7532,2433.7,2433.3,4.10954798]
[1750828435866,1.23939292,2433.7,2433.1,4.10984273]
[1750828436085,0.7532,2433.7,2433.1,4.10984273]
[1750828436392,0.79,2433.6,2432.9,0.8095]
[1750828436588,4.10940486,2433.5,2432.9,4.11017859]
[1750828436762,14.89920973,2433.6,2433.0,4.11014744]
[1750828437092,10.79,2433.6,2433.1,4.10997394]
[1750828437472,4.8991465,2433.6,2433.1,4.10997394]
[1750828438172,10.79,2433.6,2433.1,4.10997394]
[1750828438371,0.79,2433.6,2433.2,4.10976739]
[1750828438689,7.5046,2433.8,2433.3,4.10961482]
[1750828438892,0.7556,2433.8,2433.3,4.10961482]
[1750828439859,10.86051357,2434.0,2433.5,0.8293]
[1750828439860,0.7556,2434.0,2433.5,0.8293]
[1750828440067,6.56569799,2434.4,2433.6,4.10903977]
[1750828440068,7.5066,2434.2,2433.6,4.10903977]
[1750828440267,4.95017317,2434.5,2433.9,4.10852905]
[1750828440482,4.95017317,2434.5,2433.6,0.49383398]
[1750828440483,4.10804631,2434.3,2433.8,0.8293]
[1750828440693,4.10804631,2434.3,2433.8,4.93808912]
[1750828440887,10.0,2434.3,2433.8,4.93808912]
[1750828442796,0.7556,2434.4,2433.9,4.10863176]
[1750828442964,10.7556,2434.4,2433.9,4.10863176]
[1750828443295,14.86339697,2434.4,2433.9,4.10863176]
[1750828443597,4.86339697,2434.4,2433.9,4.10863176]
[1750828443794,0.7556,2434.4,2433.9,4.10863176]
[1750828444164,4.1079636,2434.3,2433.9,1.08088912]
[1750828444390,10.0,2434.2,2433.8,0.8293]
[1750828448394,4.91824596,2434.1,2433.7,1.76]
[1750828448967,5.82088526,2434.1,2433.7,1.76]
[1750828449219,0.8098,2434.1,2433.7,1.76]
[1750828450593,0.8098,2434.1,2433.7,5.86895881]
[1750828450968,10.0,2434.2,2433.8,4.10877214]
[1750828454299,0.7696,2434.1,2433.6,4.10906861]
[1750828454802,0.7696,2434.1,2433.7,4.10894374]
[1750828457607,14.86844933,2434.3,2433.7,4.88924374]
[1750828457775,18.09694833,2434.3,2433.7,4.88924374]
[1750828458100,10.7604,2434.3,2433.8,4.10878721]
[1750828458801,14.86838119,2434.3,2433.8,4.10878721]
[1750828459108,14.86838119,2434.3,2433.7,4.88919049]
[1750828466396,10.7604,2434.3,2433.8,4.10877851]
[1750828466891,10.7604,2434.3,2433.9,4.10859061]
[1750828467097,10.0,2434.3,2433.9,4.10859061]
[1750828468118,0.7942,2434.5,2434.0,4.10846343]
[1750828469820,4.90190483,2434.5,2434.0,4.10846343]
[1750828470019,4.90190483,2434.5,2434.0,5.02016725]
[1750828471389,4.90190483,2434.5,2434.0,4.10846343]
[1750828472517,4.90190483,2434.5,2433.9,4.10852938]
[1750828472689,4.10813799,2434.2,2433.7,0.7803]
[1750828473014,0.8172,2434.1,2433.5,0.7558]
[1750828473216,4.92550941,2434.1,2433.6,4.10913872]
[1750828474241,4.10847143,2434.0,2433.5,4.10924216]
[1750828475017,0.7904,2433.8,2433.4,4.10946476]
[1750828475202,0.7904,2433.8,2433.2,4.10976895]
[1750828475203,4.8992188,2433.8,2433.2,4.10969411]
[1750828475397,4.8992188,2433.8,2433.2,5.86969411]
[1750828475584,4.10934131,2433.5,2433.2,1.76]
[1750828475789,0.8062,2433.4,2432.9,1.76]
[1750828475985,4.91568865,2433.4,2432.9,5.87020719]
[1750828476816,4.91568865,2433.4,2433.0,4.11007992]
[1750828476817,0.8062,2433.4,2433.0,4.11007992]
[1750828477186,0.8062,2433.4,2433.1,4.10989745]
[1750828478924,0.25012187,2433.4,2433.1,5.10789519]
[1750828480026,10.0,2433.7,2433.1,5.93879519]
[1750828480328,10.0,2433.7,2433.1,5.93882677]
[1750828480625,10.0,2433.7,2433.3,4.109624]
[1750828480830,4.10863266,2433.9,2433.4,4.10935791]
[1750828481242,4.10863266,2433.9,2433.3,4.10956607]
[1750828481534,4.10863266,2433.9,2433.3,5.11439359]
[1750828481932,0.7628,2433.8,2433.3,5.11439359]
[1750828485416,0.7628,2433.8,2433.4,4.10947549]
[1750828486125,0.7628,2433.8,2433.4,4.10947645]
[1750828486296,0.7722,2434.0,2433.6,4.10905117]
[1750828486496,0.7837,2434.2,2433.7,4.51977742]
[1750828486697,10.7837,2434.2,2433.7,4.51977742]
[1750828487099,14.8918677,2434.2,2433.7,0.41090512]
[1750828487612,14.8918677,2434.2,2433.7,4.51984868]
[1750828488712,4.10830534,2434.1,2433.7,0.41090512]
[1750828489119,14.89189696,2434.2,2433.7,0.41090512]
[1750828489526,14.89189696,2434.2,2433.7,4.51986864]
[1750828489900,14.89189696,2434.2,2433.8,0.53159686]
[1750828489901,10.7837,2434.2,2433.8,0.53159686]
[1750828494255,14.89184747,2434.2,2433.8,0.53159686]
[1750828494418,14.89184747,2434.2,2433.7,0.41090512]
[1750828494738,14.89184747,2434.2,2433.7,4.51987084]
[1750828496235,10.7837,2434.2,2433.8,4.10864524]
[1750828498437,10.0,2434.2,2433.8,4.10864524]
[1750828502646,0.8071,2434.6,2433.9,0.7891]
[1750828502831,10.0,2434.4,2433.9,0.7891]
[1750828503966,10.0,2434.4,2434.0,4.10838058]
[1750828504449,10.0,2434.4,2433.7,0.41090512]
[1750828504450,0.7584,2434.3,2433.7,0.41090512]
[1750828504820,4.10827115,2434.2,2433.7,0.41090512]
[1750828505227,4.10827115,2434.2,2433.7,4.51985946]
[1750828508552,4.10827115,2434.2,2433.7,0.41090512]
[1750828508719,4.10827115,2434.2,2433.5,11.66237369]
[1750828508720,10.0,2434.1,2433.5,0.8141]
[1750828508926,4.88024272,2434.0,2433.4,4.10933414]
[1750828509442,4.88024272,2434.0,2433.5,4.10929415]
[1750828510325,4.88024272,2434.0,2433.4,4.10940165]
[1750828510524,4.88024272,2434.0,2433.5,4.10928236]
[1750828514365,4.88024272,2434.0,2433.4,1.34384394]
[1750828514366,0.8319,2433.5,2432.9,8.496]
[1750828514667,0.8319,2433.9,2433.7,4.10883061]
[1750828514960,0.8319,2434.1,2433.7,4.10883061]
[1750828515454,0.8319,2434.1,2433.6,4.93511883]
[1750828515455,0.8319,2434.1,2433.6,4.10907243]
[1750828515837,0.8319,2434.1,2433.7,4.10896122]
[1750828516059,10.8319,2434.1,2433.7,4.10896122]
[1750828520258,10.8319,2434.1,2433.6,4.10905274]
[1750828521967,10.8319,2434.1,2433.7,4.10892647]
[1750828522128,10.8319,2434.1,2433.8,4.10877623]
[1750828522450,10.0,2434.1,2433.8,4.10877623]
[1750828524059,4.92648715,2434.3,2433.8,4.93077623]
[1750828524060,21.66448715,2434.3,2433.8,4.93077623]
[1750828524854,21.66448715,2434.3,2433.8,0.822]
[1750828526969,21.66448715,2434.3,2433.8,5.94275752]
[1750828527476,21.66448715,2434.3,2433.8,1.83400732]
[1750828527770,10.0,2434.1,2433.8,0.822]
[1750828529474,10.0,2434.1,2433.6,4.90795276]
[1750828530136,0.8062,2434.0,2433.0,4.11000766]
[1750828530342,4.91475856,2434.0,2433.4,4.10931641]
[1750828530571,4.91475856,2434.0,2433.5,4.10929449]
[1750828531269,4.91475856,2434.0,2433.4,5.00916942]
[1750828531568,4.91475856,2434.0,2433.4,6.76616942]
[1750828531761,4.91475856,2434.0,2433.4,5.86642325]
[1750828532272,0.8062,2434.0,2433.2,0.7785]
[1750828532454,4.10872672,2433.9,2433.3,5.86655641]
[1750828533373,0.7997,2433.8,2433.3,5.86655641]
[1750828533573,0.7997,2433.8,2433.4,1.07548242]
[1750828534972,4.90854073,2433.8,2433.3,4.10955641]
[1750828535871,0.7997,2433.8,2433.3,4.10955641]
[1750828536259,0.7997,2433.8,2433.4,4.10946645]
[1750828539147,0.7997,2433.8,2433.5,4.10929392]
[1750828539547,11.60993708,2434.0,2433.5,4.10929392]
[1750828539777,14.18174981,2434.0,2433.5,4.10929392]
[1750828539985,14.18174981,2434.0,2433.4,4.10938779]
[1750828540158,14.18174981,2434.0,2433.5,4.10927808]
[1750828540456,14.18174981,2434.0,2433.4,4.10938667]
[1750828543784,14.1086849,2433.9,2433.3,4.10955635]
[1750828543984,0.8312,2433.8,2433.3,4.10955635]
[1750828544167,0.8312,2433.8,2433.3,5.85777965]
[1750828544570,0.8312,2433.8,2433.3,4.10955635]
[1750828544967,0.8312,2433.8,2433.4,4.10947128]
[1750828545161,0.8312,2433.8,2433.2,5.86677663]
[1750828545376,0.8312,2433.8,2433.3,4.1095847]
[1750828546498,0.8264,2433.7,2433.2,1.757]
[1750828546686,0.8264,2433.6,2433.2,1.757]
[1750828546994,0.8264,2433.6,2433.3,4.10963749]
[1750828547559,0.8264,2433.6,2433.2,6.86448834]
[1750828547755,0.8264,2433.6,2433.3,4.10964533]
[1750828548083,0.8223,2433.8,2433.4,4.10937669]
[1750828549791,0.8223,2433.8,2433.3,4.10956582]
[1750828550005,4.9311098,2433.8,2433.3,4.10956582]
[1750828550369,4.9311098,2433.8,2433.2,6.86444168]
[1750828550897,4.9311098,2433.8,2433.3,4.10960406]
[1750828552396,7.50867153,2433.8,2433.3,4.10960406]
[1750828553801,7.50867153,2433.8,2433.2,5.8667622]
[1750828554400,0.8223,2433.8,2433.2,5.8667622]
[1750828554566,10.0,2433.7,2433.3,4.10961894]
[1750828555875,14.10899039,2433.7,2433.2,5.86673885]
[1750828556215,0.7562,2433.6,2433.2,5.86674077]
[1750828556509,0.7562,2433.6,2433.3,4.10963976]
[1750828557198,0.7562,2433.6,2433.2,1.757]
[1750828557199,0.7562,2433.6,2433.2,5.866724]
[1750828557397,0.7562,2433.6,2433.2,6.86440585]
[1750828557802,0.7562,2433.6,2433.3,4.10963793]
[1750828558504,0.7562,2433.6,2433.2,6.86442557]
[1750828560712,4.86545007,2433.6,2433.2,2.75468185]
[1750828560999,4.86545007,2433.6,2433.2,1.757]
[1750828561203,0.7562,2433.6,2433.2,5.86677117]
[1750828561383,0.7562,2433.6,2433.3,4.10964533]
[1750828562200,0.7562,2433.6,2432.9,13.37530159]
[1750828562201,10.0,2433.5,2433.1,4.10997516]
[1750828562405,10.0,2433.5,2433.0,6.733]
[1750828562406,4.10931924,2433.5,2433.0,4.11005248]
[1750828562607,4.10931924,2433.5,2433.0,5.85860016]
[1750828562608,10.0,2433.5,2433.0,5.85860016]
[1750828565903,4.86542593,2433.6,2433.1,4.10996252]
[1750828565904,0.7562,2433.6,2433.1,4.10996252]
[1750828566109,0.7562,2433.6,2433.0,5.85868886]
[1750828566110,10.7562,2433.6,2433.2,4.10971416]
[1750828567410,4.10905824,2433.7,2433.3,4.1096284]
[1750828567411,10.0,2433.7,2433.3,4.1096284]
[1750828568286,10.0,2433.7,2433.2,4.92232804]
[1750828569335,0.8013,2433.8,2433.2,2.56388306]
[1750828569492,0.8013,2433.8,2433.4,4.10936716]
[1750828569697,10.8013,2433.8,2433.4,4.10936716]
[1750828570513,4.89999079,2434.1,2433.5,4.10918813]
[1750828570716,4.89999079,2434.1,2433.6,4.52001499]
[1750828570881,4.89999079,2434.1,2433.6,4.10909618]
[1750828571087,10.7916,2434.1,2433.6,4.10909618]
[1750828571482,14.89990544,2434.1,2433.6,4.10909618]
[1750828572215,14.89990544,2434.1,2433.5,4.8790431]
[1750828573520,10.7916,2434.1,2433.6,4.10908811]
[1750828574094,10.7916,2434.1,2433.7,4.10896165]
[1750828574618,10.0,2434.1,2433.7,4.10896165]
[1750828575118,10.0,2433.9,2433.0,0.7799]
[1750828575418,0.7966,2433.5,2433.0,4.11006649]
[1750828575617,4.90593313,2433.5,2433.0,4.11006649]
[1750828577318,0.7966,2433.5,2433.0,4.11006649]
[1750828577518,0.7966,2433.5,2433.0,5.85829353]
[1750828577890,4.90591655,2433.5,2433.0,5.85829353]
[1750828578917,0.7966,2433.5,2433.0,5.85829353]
[1750828579101,0.7966,2433.5,2433.1,4.10993877]
[1750828581430,0.7966,2433.5,2433.2,4.10981241]
[1750828581619,0.7966,2433.5,2433.2,5.106623]
[1750828581808,0.7966,2433.5,2433.2,0.99681059]
[1750828582010,0.7966,2433.5,2433.0,1.74822704]
[1750828582401,0.7966,2433.5,2433.0,5.85828843]
[1750828583018,14.90591278,2433.5,2433.0,5.85828843]
[1750828583827,0.7966,2433.5,2433.1,4.10997689]
[1750828585634,4.90591562,2433.5,2433.0,5.85828971]
[1750828586335,4.90591562,2433.5,2433.0,4.11006267]
[1750828588034,0.7966,2433.5,2433.1,4.10997975]
[1750828596243,4.90594117,2433.5,2433.0,4.11014775]
[1750828596455,0.7966,2433.5,2433.1,4.10998312]
[1750828596915,10.7966,2433.5,2433.1,4.10998312]
[1750828597112,0.7528,2433.2,2432.4,4.11106365]
[1750828597443,1.49057814,2433.5,2432.3,8.20179418]
[1750828597444,14.10972513,2433.3,2432.3,8.20179418]
[1750828597647,0.7528,2432.8,2432.4,4.11116199]
[1750828597813,0.7528,2432.8,2432.4,6.40951824]
[1750828599376,0.7528,2432.8,2432.5,4.11098755]
[1750828600329,0.7528,2432.8,2432.4,6.40944569]
[1750828600924,0.7528,2432.8,2432.5,4.11097266]
[1750828601859,0.7563,2433.0,2432.6,4.11082137]
[1750828602454,0.7563,2433.0,2432.5,4.11091782]
[1750828602642,0.7563,2433.0,2432.5,5.57202065]
[1750828603035,0.7563,2433.0,2432.6,4.11080566]
[1750828603755,0.7563,2433.0,2432.7,4.1106503]
[1750828604053,4.10975476,2433.3,2432.7,4.1106503]
[1750828604054,0.8059,2433.2,2432.7,4.1106503]
[1750828605935,0.8059,2433.2,2432.7,5.16151372]
[1750828608960,10.0,2433.1,2432.7,5.16151372]
[1750828610562,14.11013793,2433.1,2432.7,1.05086342]
[1750828611232,10.0,2433.1,2432.7,1.05086342]
[1750828612362,14.10998523,2433.1,2432.7,1.05086342]
[1750828612857,14.10998523,2433.1,2432.6,13.41388073]
[1750828613461,14.10998523,2433.1,2432.6,0.8261]
[1750828613762,14.10998523,2433.1,2432.6,6.727]
[1750828615572,0.7755,2433.0,2432.4,6.40944548]
[1750828615761,4.88576156,2433.0,2432.6,6.727]
[1750828618483,0.8306,2432.9,2432.4,4.11108563]
[1750828619061,4.94093662,2432.9,2432.4,4.11108563]
[1750828619578,0.8306,2432.9,2432.4,4.11108563]
[1750828620697,0.8306,2432.9,2432.3,8.201919]
[1750828620698,0.8306,2432.9,2432.3,4.09062069]
[1750828620859,4.11087363,2432.6,2432.3,4.09062069]
[1750828621061,0.7658,2432.5,2432.3,4.09062069]
[1750828621263,0.7658,2432.5,2432.1,4.11165248]
[1750828621478,0.7658,2432.5,2432.1,4.68467673]
[1750828622889,10.7658,2432.5,2432.0,5.86178072]
[1750828623051,10.7658,2432.5,2432.0,12.58778072]
[1750828623252,14.87684111,2432.5,2431.9,4.11194908]
[1750828623567,16.56569799,2432.5,2431.3,9.867]
[1750828623865,4.87731481,2431.9,2431.4,0.9867]
[1750828624069,4.87731481,2431.9,2431.3,4.11291082]
[1750828624291,4.87731481,2431.9,2431.4,4.11282881]
[1750828626389,0.7653,2431.9,2431.4,4.11282881]
[1750828626556,0.7653,2431.9,2431.5,4.1126718]
[1750828627265,0.7653,2431.9,2431.3,4.11300355]
[1750828627266,0.7653,2431.9,2431.4,4.11278098]
[1750828627466,0.7653,2431.9,2431.5,4.11266172]
[1750828628793,0.7644,2432.2,2431.5,8.06096452]
[1750828628963,2.09921237,2432.3,2431.5,8.06096452]
[1750828628964,2.09921237,2432.3,2432.0,4.11172283]
[1750828629161,12.09921237,2432.3,2431.9,4.11194724]
[1750828630078,4.87111054,2432.2,2431.7,4.11234483]
[1750828630283,0.7596,2432.1,2431.6,4.11248868]
[1750828630984,0.7596,2432.1,2431.7,4.11232047]
[1750828632200,4.87128376,2432.1,2431.6,4.11251303]
[1750828632600,0.7596,2432.1,2431.7,4.11233692]
[1750828634067,0.7596,2432.1,2431.8,4.11210266]
[1750828635999,0.7596,2432.1,2431.9,4.11195753]
[1750828636396,12.93221237,2432.3,2431.9,4.11195753]
[1750828636697,12.93221237,2432.3,2432.1,4.11164079]
[1750828636944,2.09921237,2432.3,2432.1,4.11164079]
[1750828637199,2.09921237,2432.3,2431.9,4.91165222]
[1750828637200,2.09921237,2432.3,2432.0,4.11175472]
[1750828638203,2.09921237,2432.3,2432.1,4.11166123]
[1750828638369,2.09921237,2432.3,2432.0,1.15948519]
[1750828638567,2.09921237,2432.3,2432.1,4.1116032]
[1750828639302,2.09921237,2432.3,2432.0,5.27128192]
[1750828640329,2.09921237,2432.3,2432.1,4.11166327]
[1750828642030,2.09921237,2432.3,2432.1,5.12994601]
[1750828644617,2.09921237,2432.3,2431.9,4.1119141]
[1750828647719,0.8094,2432.2,2431.9,4.1119141]
[1750828649928,2.09921237,2432.3,2431.9,4.1119141]
[1750828650430,2.09921237,2432.3,2432.0,4.11184159]
[1750828651229,2.09921237,2432.3,2431.9,4.11192117]
[1750828651530,10.8047,2432.4,2431.9,4.11192117]
[1750828651826,12.70736122,2432.4,2431.9,4.11192117]
[1750828652137,16.81856816,2432.4,2431.9,4.11192117]
[1750828652617,12.70736122,2432.4,2431.9,4.11192117]
[1750828654297,12.70736122,2432.4,2432.0,4.11182989]
[1750828654933,12.70736122,2432.4,2431.8,10.83816733]
[1750828654934,4.93132654,2432.3,2431.8,4.11216408]
[1750828655114,7.28567039,2432.3,2431.8,4.11216408]
[1750828655828,3.17424385,2432.3,2431.9,4.1119327]
[1750828656734,3.17424385,2432.3,2431.8,4.1120983]
[1750828656935,0.7866,2432.1,2431.2,0.7983]
[1750828657238,0.7866,2432.1,2431.6,4.11238994]
[1750828657733,4.11170789,2432.1,2431.6,4.11238994]
[1750828657926,0.7658,2432.0,2431.5,4.11260716]
[1750828658816,0.7658,2432.0,2431.6,4.11249449]
[1750828659947,16.725,2431.9,2430.8,4.11382408]
[1750828660241,0.8193,2431.7,2431.3,4.11293132]
[1750828660613,0.8193,2431.7,2431.4,4.11283645]
[1750828662531,10.7917,2431.9,2431.5,4.1126846]
[1750828664825,10.7917,2431.9,2431.4,4.11277038]
[1750828665643,10.7917,2431.9,2431.3,4.11301903]
[1750828665644,10.7917,2431.9,2431.5,4.11268506]
[1750828666547,0.7917,2431.9,2431.6,4.11245982]
[1750828666721,0.03277326,2432.2,2431.8,4.11209771]
[1750828666722,0.85117326,2432.2,2431.8,4.11209771]
[1750828666925,0.85117326,2432.2,2431.9,4.11200173]
[1750828667248,0.03277326,2432.2,2431.9,4.11200173]
[1750828667847,0.03277326,2432.2,2431.9,4.11201118]
[1750828668151,0.03277326,2432.2,2432.0,4.11183369]
[1750828668518,0.03277326,2432.2,2431.9,5.01107959]
[1750828669218,0.03277326,2432.2,2431.9,4.11194181]
[1750828674721,0.03277326,2432.2,2432.1,4.11167303]
[1750828677257,0.03277326,2432.2,2432.1,4.93687303]
[1750828679063,0.03277326,2432.2,2432.1,11.50257102]
[1750828679351,0.03277326,2432.2,2432.1,12.05257102]
[1750828679652,0.8293,2433.0,2432.7,4.11060007]
[1750828682660,0.7647,2433.3,2432.5,9.2843]
[1750828682825,0.7647,2433.3,2432.9,4.1103043]
[1750828687662,0.7647,2433.3,2432.8,4.11045232]
[1750828687864,0.7647,2433.3,2432.9,4.52122471]
[1750828692733,4.87443206,2433.3,2432.9,0.41104523]
[1750828692931,0.8155,2433.0,2432.5,4.11090568]
[1750828693752,0.8155,2433.0,2432.5,4.11098575]
[1750828693966,0.7757,2432.9,2432.5,4.11098101]
[1750828694739,0.7757,2432.9,2432.6,4.11081781]
[1750828696067,0.7757,2432.9,2432.5,4.11092212]
[1750828696251,4.88605031,2432.9,2432.2,0.8329]
[1750828696451,4.88605031,2432.9,2432.4,4.11110003]
[1750828696948,0.7757,2432.9,2432.3,5.751959]
[1750828697149,0.7757,2432.9,2432.5,4.11091034]
[1750828698954,0.7757,2432.9,2432.6,4.11082455]
[1750828703096,0.7757,2432.9,2432.4,4.11116592]
[1750828703271,4.88615115,2432.9,2432.4,4.11116592]
[1750828703989,0.7701,2432.8,2432.0,0.8258]
[1750828704192,4.11045115,2432.9,2432.2,4.11142202]
[1750828704193,0.8025,2432.6,2432.2,4.11142202]
[1750828704396,0.8025,2432.6,2432.1,5.8565509]
[1750828704888,0.8025,2432.6,2432.2,4.11150182]
[1750828705889,0.8025,2432.6,2432.1,1.745]
[1750828705890,4.91333334,2432.6,2432.1,4.11159813]
[1750828706094,0.7871,2432.5,2432.2,4.11148636]
[1750828706894,0.7871,2432.5,2432.1,4.1115891]
[1750828707095,0.7871,2432.5,2432.2,4.11148671]
[1750828707390,0.7871,2432.5,2432.2,4.11150398]
[1750828707574,0.7871,2432.5,2432.2,4.52265438]
[1750828707777,0.7871,2432.5,2432.3,4.11127228]
[1750828708186,0.7594,2432.7,2432.3,4.11127228]
[1750828708494,0.7594,2432.7,2432.4,4.11115824]
[1750828709083,0.7594,2432.7,2432.2,0.4111504]
[1750828709286,4.11029988,2433.0,2432.2,0.4111504]
[1750828709287,17.5424,2432.9,2432.3,4.11133495]
[1750828709476,17.5424,2432.9,2432.4,4.56328189]
[1750828709794,10.8244,2432.9,2432.4,4.11103335]
[1750828710167,17.5424,2432.9,2432.4,4.11103335]
[1750828710699,17.5424,2432.9,2432.3,4.11122259]
[1750828710700,21.65272232,2432.9,2432.3,4.11122259]
[1750828710905,4.11049799,2432.8,2432.3,4.11122259]
[1750828711600,0.8003,2432.7,2432.3,4.11122259]
[1750828712204,0.8003,2432.7,2432.4,4.11116136]
[1750828712697,0.8003,2432.7,2432.5,4.11095656]
[1750828713382,0.7675,2433.0,2432.5,4.11095656]
[1750828713590,6.718,2432.8,2432.5,4.11095656]
[1750828714471,0.8148,2432.7,2432.2,4.11148056]
[1750828715172,0.8148,2432.7,2432.3,4.11124316]
[1750828716877,0.8148,2432.7,2432.4,4.11114873]
[1750828724621,0.8148,2432.7,2431.9,1.3346]
[1750828724920,0.8228,2432.4,2431.8,1.745]
[1750828725213,4.11133495,2432.3,2431.8,5.85709923]
[1750828725513,4.11133495,2432.3,2431.8,7.02262556]
[1750828725711,0.8046,2432.0,2431.4,0.8049]
[1750828725915,6.718,2431.9,2431.5,4.11256836]
[1750828726492,0.8046,2432.0,2431.6,4.11250637]
[1750828726901,7.5226,2432.0,2431.6,4.11250637]
[1750828727220,7.5226,2432.0,2431.7,4.11233955]
[1750828727826,7.5226,2432.0,2431.6,4.1124537]
[1750828728194,7.5226,2432.0,2431.5,4.11260313]
[1750828729292,4.11203394,2431.9,2431.4,4.11277158]
[1750828729618,9.86042879,2432.0,2431.5,4.11267206]
[1750828729990,9.86042879,2432.0,2431.4,4.11277502]
[1750828729991,13.97238033,2432.0,2431.4,4.11277502]
[1750828730296,13.97238033,2432.0,2431.5,4.11266634]
[1750828731005,13.97238033,2432.0,2431.4,4.11278088]
[1750828731500,13.97238033,2432.0,2431.5,4.11267385]
[1750828731701,11.63455154,2432.0,2431.5,4.11267385]
[1750828733422,11.63455154,2432.0,2431.3,4.11301914]
[1750828733423,10.0,2431.9,2431.4,4.11277305]
[1750828733625,14.11204214,2431.9,2431.4,4.11277305]
[1750828733923,14.11204214,2431.9,2431.3,4.11294234]
[1750828733924,0.762,2431.8,2431.3,4.11294234]
[1750828734323,6.718,2431.7,2431.3,4.11294234]
[1750828734912,6.718,2431.7,2431.2,4.1131328]
[1750828734913,6.718,2431.7,2431.4,4.11282811]
[1750828736244,6.718,2431.7,2431.3,4.11295195]
[1750828736631,6.718,2431.7,2431.5,4.11268536]
[1750828736939,7.481,2431.8,2431.5,4.11268536]
[1750828737664,7.481,2431.8,2431.4,4.11278014]
[1750828738553,7.481,2431.8,2431.3,4.11293993]
[1750828738554,11.59319106,2431.8,2431.3,4.11293993]
[1750828738757,10.05150514,2431.8,2431.4,4.11285394]
[1750828739426,7.481,2431.8,2431.4,4.11285394]
[1750828739627,6.719,2431.8,2431.6,4.11243635]
[1750828739833,10.7861,2432.0,2431.8,4.11203675]
[1750828739834,10.0,2432.0,2431.8,4.11203675]
[1750828740034,0.7861,2432.2,2431.7,4.11227521]
[1750828740243,16.719,2432.1,2431.8,4.1121682]
[1750828740947,16.719,2432.1,2430.9,4.66355053]
[1750828740948,0.7587,2432.0,2431.5,4.11264933]
[1750828741147,4.87065253,2432.0,2431.2,4.11303896]
[1750828741351,4.87065253,2432.0,2431.4,4.11277604]
[1750828741910,4.87065253,2432.0,2431.5,4.11266832]
[1750828742116,3.24602436,2432.0,2431.5,4.11266832]
[1750828742559,0.7587,2432.0,2431.5,4.11266832]
[1750828742715,0.7587,2432.0,2431.6,4.11247497]
[1750828742917,7.4787,2432.0,2431.6,4.11247497]
[1750828743136,0.7587,2432.0,2431.6,4.11247497]
[1750828743444,7.4787,2432.0,2431.6,4.11247497]
[1750828743819,0.7587,2432.0,2431.6,4.11247497]
[1750828744019,6.719,2432.0,2431.6,5.01561186]
[1750828744218,6.719,2432.0,2431.7,4.11234938]
[1750828745235,6.719,2432.1,2431.7,4.11234938]
[1750828746334,10.0,2432.0,2431.7,4.11234938]
[1750828747155,4.93571248,2432.2,2431.7,4.11234938]
[1750828747450,6.719,2432.1,2431.9,4.1118886]
[1750828747629,14.89879941,2432.4,2431.9,4.1118886]
[1750828747826,10.0,2432.2,2431.9,4.1118886]
[1750828748024,10.0,2432.2,2431.7,5.84640041]
[1750828748025,10.0,2432.2,2431.8,4.11210515]
[1750828748252,10.0,2432.2,2431.7,5.84637672]
[1750828748577,16.719,2432.2,2431.7,4.11226546]
[1750828749071,16.719,2432.2,2431.8,4.11217926]
[1750828749648,10.0,2432.2,2431.8,4.11217926]
[1750828749855,16.719,2432.2,2431.8,4.11217926]
[1750828750035,10.0,2432.2,2431.8,4.11217926]
[1750828750238,16.719,2432.2,2431.8,4.11217926]
[1750828750952,16.719,2432.2,2431.5,0.8195]
[1750828750953,6.719,2432.2,2431.5,0.8195]
[1750828751157,0.7876,2432.4,2431.8,4.11215318]
[1750828751452,0.7876,2432.4,2431.9,4.11186949]
[1750828751656,10.0,2432.2,2431.9,4.11186949]
[1750828751956,10.0,2432.3,2432.0,4.11174358]
[1750828752255,0.7876,2432.4,2432.0,4.11174358]
[1750828752459,10.0,2432.3,2432.0,4.11174358]
[1750828752627,7.5066,2432.4,2432.0,4.11174358]
[1750828752828,10.0,2432.3,2432.0,4.11174358]
[1750828753258,0.7876,2432.4,2432.0,4.11174358]
[1750828753437,10.0,2432.3,2432.0,4.11174358]
[1750828754554,10.0,2432.3,2431.9,4.87313066]
[1750828754758,10.0,2432.3,2431.9,4.11193066]
[1750828758153,10.0,2432.3,2432.0,4.11180326]
[1750828758764,2.51186,2432.2,2431.6,4.11251171]
[1750828759063,0.7613,2432.2,2431.8,4.11210249]
[1750828759952,0.7613,2432.2,2431.9,4.11199585]
[1750828760141,10.0,2432.3,2432.0,4.11184209]
[1750828760883,10.0,2432.3,2431.8,4.8777984]
[1750828760884,0.8207,2432.6,2431.9,8.30869799]
[1750828761062,10.8207,2432.8,2432.3,4.11131783]
[1750828761365,10.0,2432.5,2432.4,4.11115119]
[1750828761735,6.718,2432.7,2432.4,4.11115119]
[1750828762068,6.718,2432.7,2432.3,4.11125429]
[1750828762482,10.0,2432.6,2432.2,4.93393117]
[1750828763867,10.0,2432.6,2432.2,4.11143117]
[1750828771880,16.717,2432.7,2432.2,4.11143117]
[1750828772357,20.82766594,2432.7,2432.2,4.11143117]
[1750828772960,16.717,2432.7,2432.2,4.11143117]
[1750828773480,10.0,2432.7,2432.2,4.11143117]
[1750828773782,16.717,2432.7,2432.2,5.1488738]
[1750828774985,10.0,2432.7,2432.2,5.1488738]
[1750828775156,16.717,2432.7,2432.3,0.764]
[1750828776281,10.0,2432.7,2432.3,0.764]
[1750828776466,10.0,2432.5,2432.3,0.764]
[1750828778883,1.743,2433.3,2432.6,4.11072376]
[1750828779186,10.0,2433.1,2432.6,4.92452376]
[1750828779381,14.11001123,2433.1,2432.6,4.92452376]
[1750828780290,14.11001123,2433.1,2432.6,0.8138]
[1750828780489,10.0,2432.9,2432.6,0.8138]
[1750828780667,16.716,2432.9,2432.6,0.8138]
[1750828781385,10.0,2432.9,2432.6,0.8138]
[1750828781567,16.716,2432.9,2432.6,0.8138]